lending/lending_fUSD_20250122
["ID","MTS","AMOUNT","RATE_DAILY","PERIOD"]
[350002232,1737561041019,-506.95369606,0.00020962,2]
[350002233,1737561041028,-500.0,0.00020962,2]
[350002234,1737561041037,-500.0,0.00020962,2]
[350002235,1737561041047,-500.0,0.00020962,2]
[350002236,1737561041056,-500.0,0.00020962,2]
[350002237,1737561041066,-500.0,0.00020962,2]
[350002238,1737561041075,-500.0,0.00020962,2]
[350002239,1737561041084,-1169.53,0.00020962,2]
[350002240,1737561041094,-500.0,0.00020962,2]
[350002241,1737561041103,-512.22036521,0.00020962,2]
[350002242,1737561041112,-503.91,0.00020962,2]
[350002243,1737561041122,-500.0,0.00020962,2]
[350002244,1737561041131,-500.0,0.00020962,2]
[350002245,1737561041140,-500.0,0.00020962,2]
[350002246,1737561041149,-500.0,0.00020962,2]
[350002247,1737561041159,-392.22798603,0.00020962,2]
[350002248,1737561041169,-500.0,0.00020962,2]
[350002249,1737561041178,-500.0,0.00020962,2]
[350002250,1737561041188,-500.0,0.00020962,2]
[350002251,1737561041198,-500.0,0.00020962,2]
[350002252,1737561041210,-500.0,0.00020962,2]
[350002253,1737561041220,-868.31,0.00020962,2]
[350002254,1737561041230,-500.0,0.00020962,2]
[350002255,1737561041239,-936.05,0.00020962,2]
[350002256,1737561041248,-943.02,0.00020962,2]
[350002257,1737561041258,-710.57,0.00020962,2]
[350002258,1737561041267,-500.0,0.00020962,2]
[350002259,1737561041276,-740.49,0.00020962,2]
[350002260,1737561041286,-849.79,0.00020962,2]
[350002261,1737561041296,-500.0,0.00020962,2]
[350002262,1737561041305,-500.0,0.00020962,2]
[350002263,1737561041315,-527.75566491,0.00020962,2]
[350002264,1737561041324,-729.86,0.00020962,2]
[350002265,1737561041333,-1325.49,0.00020962,2]
[350002266,1737561041343,-500.0,0.00020962,2]
[350002267,1737561041352,-500.0,0.00020962,2]
[350002268,1737561041361,-736.4,0.00020962,2]
[350002269,1737561041371,-500.0,0.00020962,2]
[350002270,1737561041380,-1313.17,0.00020962,2]
[350002271,1737561041390,-756.94,0.00020962,2]
[350002272,1737561041399,-500.0,0.00020962,2]
[350002273,1737561041408,-889.45,0.00020962,2]
[350002274,1737561041418,-1671.82,0.00020962,2]
[350002275,1737561041428,-500.0,0.00020962,2]
[350002276,1737561041438,-869.43,0.00020962,2]
[350002277,1737561041447,-1219.9,0.00020962,2]
[350002278,1737561041459,-1936.2,0.00020962,2]
[350002279,1737561041468,-1090.25,0.00020962,2]
[350002280,1737561041478,-308.75909505,0.00020962,2]
[350002281,1737561041487,-2282.81,0.00020962,2]
[350002282,1737561041497,-857.24,0.00020962,2]
[350002283,1737561041506,-3260.25,0.00020962,2]
[350002284,1737561041515,-745.37,0.00020962,2]
[350002285,1737561041525,-1183.05,0.00020962,2]
[350002286,1737561041534,-500.0,0.00020962,2]
[350002287,1737561041543,-500.0,0.00020962,2]
[350002288,1737561041553,-3734.26,0.00020962,2]
[350002289,1737561041562,-1914.34,0.00020962,2]
[350002290,1737561041572,-502.52578093,0.00020962,2]
[350002291,1737561041582,-500.0,0.00020962,2]
[350002292,1737561041592,-1244.09,0.00020962,2]
[350002293,1737561041602,-500.0,0.00020962,2]
[350002294,1737561041611,-500.0,0.00020962,2]
[350002295,1737561041621,-1115.53,0.00020962,2]
[350002296,1737561041631,-210.33792228,0.00020962,2]
[350002297,1737561041641,-500.0,0.00020962,2]
[350002298,1737561041650,-500.0,0.00020962,2]
[350002299,1737561041660,-500.0,0.00020962,2]
[350002300,1737561041671,-500.0,0.00020962,2]
[350002301,1737561041681,-500.0,0.00020962,2]
[350002302,1737561041691,-567.71,0.00020962,2]
[350002303,1737561041700,-500.0,0.00020962,2]
[350002304,1737561041711,-500.0,0.00020962,2]
[350002305,1737561041720,-832.91,0.00020962,2]
[350002306,1737561041730,-1500.31,0.00020962,2]
[350002307,1737561041740,-1782.64,0.00020962,2]
[350002308,1737561041749,-1058.45,0.00020962,2]
[350002309,1737561041759,-169.74502406,0.00020962,2]
[350002310,1737561041768,-638.44,0.00020962,2]
[350002311,1737561041777,-500.0,0.00020963,2]
[350002312,1737561041786,-1472.99,0.00020963,2]
[350002313,1737561041796,-500.0,0.00020963,2]
[350002314,1737561041807,-1783.97,0.00020963,2]
[350002315,1737561041816,-500.0,0.00020963,2]
[350002316,1737561041826,-500.0,0.00020963,2]
[350002317,1737561041836,-998.26,0.00020963,2]
[350002318,1737561041848,-500.0,0.00020963,2]
[350002319,1737561041857,-596.92,0.00020963,2]
[350002320,1737561041867,-1051.03,0.00020963,2]
[350002321,1737561041877,-926.05,0.00020963,2]
[350002322,1737561041886,-500.0,0.00020963,2]
[350002323,1737561041895,-1132.52,0.00020963,2]
[350002324,1737561041905,-1471.28,0.00020963,2]
[350002325,1737561041914,-949.56,0.00020963,2]
[350002326,1737561041926,-1416.28,0.00020963,2]
[350002327,1737561041935,-3083.91,0.00020963,2]
[350002328,1737561041945,-6269.62,0.00020963,2]
[350002329,1737561041955,-500.0,0.00020963,2]
[350002330,1737561041964,-1023.62,0.00020963,2]
[350002331,1737561041974,-1023.89,0.00020963,2]
[350002332,1737561041983,-2317.93,0.00020963,2]
[350002333,1737561041992,-504.79082918,0.00020963,2]
[350002334,1737561042001,-500.0,0.00020963,2]
[350002335,1737561042011,-1042.11,0.00020963,2]
[350002336,1737561042020,-1189.2,0.00020963,2]
[350002337,1737561042030,-1322.9,0.00020963,2]
[350002338,1737561042039,-500.0,0.00020963,2]
[350002339,1737561042048,-500.0,0.00020963,2]
[350002340,1737561042057,-1000.0,0.00020963,2]
[350002341,1737561042067,-1209.14,0.00020963,2]
[350002342,1737561042076,-500.0,0.00020963,2]
[350002343,1737561042085,-2059.96,0.00020963,2]
[350002344,1737561042095,-500.0,0.00020964,2]
[350002345,1737561042104,-500.0,0.00020964,2]
[350002346,1737561042113,-500.0,0.00020964,2]
[350002347,1737561042122,-500.0,0.00020964,2]
[350002348,1737561042131,-501.02380908,0.00020964,2]
[350002349,1737561042142,-500.0,0.00020964,2]
[350002350,1737561042151,-500.0,0.00020964,2]
[350002351,1737561042162,-635.29011111,0.00020964,2]
[350002352,1737561042171,-500.0,0.00020964,2]
[350002353,1737561042180,-500.0,0.00020964,2]
[350002354,1737561042190,-500.0,0.00020964,2]
[350002355,1737561042200,-500.0,0.00020964,2]
[350002356,1737561042212,-500.0,0.00020964,2]
[350002357,1737561042222,-500.0,0.00020964,2]
[350002358,1737561042231,-500.0,0.00020964,2]
[350002359,1737561042241,-500.0,0.00020964,2]
[350002360,1737561042250,-502.7269531,0.00020964,2]
[350002361,1737561042260,-500.0,0.00020964,2]
[350002362,1737561042269,-500.0,0.00020964,2]
[350002363,1737561042278,-500.0,0.00020964,2]
[350002364,1737561042287,-500.0,0.00020964,2]
[350002365,1737561042297,-500.0,0.00020964,2]
[350002366,1737561042307,-500.0,0.00020964,2]
[350002367,1737561042316,-506.51095282,0.00020964,2]
[350002368,1737561042325,-500.0,0.00020964,2]
[350002369,1737561042335,-500.0,0.00020964,2]
[350002370,1737561042344,-500.0,0.00020964,2]
[350002371,1737561042354,-500.0,0.00020964,2]
[350002372,1737561042363,-500.0,0.00020964,2]
[350002373,1737561042373,-500.0,0.00020964,2]
[350002374,1737561042382,-500.0,0.00020964,2]
[350002375,1737561042392,-500.0,0.00020964,2]
[350002376,1737561042401,-391.22927608,0.00020964,2]
[350002377,1737561042412,-500.0,0.00020964,2]
[350002378,1737561042423,-526.81497519,0.00020964,2]
[350002379,1737561042433,-500.0,0.00020964,2]
[350002380,1737561042443,-500.0,0.00020964,2]
[350002381,1737561042459,-500.0,0.00020964,2]
[350002382,1737561042472,-500.0,0.00020964,2]
[350002383,1737561042652,-500.0,0.00020964,2]
[350002384,1737561042662,-500.0,0.00020964,2]
[350002385,1737561042672,-500.0,0.00020964,2]
[350002386,1737561042681,-500.0,0.00020964,2]
[350002387,1737561042691,-500.0,0.00020964,2]
[350002388,1737561042701,-500.0,0.00020964,2]
[350002389,1737561042716,-500.0,0.00020964,2]
[350002390,1737561042726,-500.0,0.00020964,2]
[350002391,1737561042736,-500.0,0.00020964,2]
[350002392,1737561042745,-500.0,0.00020964,2]
[350002393,1737561042755,-500.0,0.00020964,2]
[350002394,1737561042765,-500.0,0.00020964,2]
[350002395,1737561042774,-500.0,0.00020964,2]
[350002396,1737561042784,-500.0,0.00020964,2]
[350002397,1737561042793,-500.0,0.00020964,2]
[350002398,1737561042803,-500.0,0.00020964,2]
[350002399,1737561042813,-500.0,0.00020964,2]
[350002400,1737561042823,-500.0,0.00020964,2]
[350002401,1737561042838,-500.0,0.00020964,2]
[350002402,1737561042847,-500.0,0.00020964,2]
[350002403,1737561042856,-319.69047252,0.00020964,2]
[350002404,1737561042865,-500.0,0.00020964,2]
[350002405,1737561042877,-508.70596901,0.00020964,2]
[350002406,1737561042887,-500.0,0.00020964,2]
[350002407,1737561042896,-500.0,0.00020964,2]
[350002408,1737561042906,-500.0,0.00020964,2]
[350002409,1737561042915,-500.0,0.00020964,2]
[350002411,1737561042928,-500.0,0.00020964,2]
[350002412,1737561042937,-500.0,0.00020964,2]
[350002414,1737561042947,-500.0,0.00020964,2]
[350002415,1737561042961,-500.0,0.00020964,2]
[350002416,1737561042970,-500.0,0.00020964,2]
[350002417,1737561042980,-500.0,0.00020964,2]
[350002418,1737561042989,-500.0,0.00020964,2]
[350002419,1737561042998,-275.20439181,0.00020964,2]
[350002420,1737561043008,-500.0,0.00020964,2]
[350002421,1737561043018,-500.0,0.00020964,2]
[350002422,1737561043027,-500.0,0.00020964,2]
[350002423,1737561043036,-571.11,0.00020964,2]
[350002424,1737561043046,-500.0,0.00020964,2]
[350002425,1737561043055,-500.0,0.00020964,2]
[350002426,1737561043065,-500.0,0.00020964,2]
[350002427,1737561043075,-324.11441854,0.00020964,2]
[350002428,1737561043084,-500.0,0.00020964,2]
[350002429,1737561043093,-524.87,0.00020964,2]
[350002430,1737561043103,-500.0,0.00020964,2]
[350002431,1737561043113,-500.0,0.00020964,2]
[350002432,1737561043122,-601.10642597,0.00020964,2]
[350002433,1737561043132,-575.83,0.00020964,2]
[350002434,1737561043141,-500.0,0.00020964,2]
[350002435,1737561043151,-500.0,0.00020964,2]
[350002436,1737561043160,-500.0,0.00020964,2]
[350002437,1737561043170,-500.0,0.00020964,2]
[350002438,1737561043179,-500.0,0.00020964,2]
[350002439,1737561043188,-500.0,0.00020964,2]
[350002440,1737561043198,-570.68,0.00020964,2]
[350002441,1737561043210,-500.0,0.00020964,2]
[350002442,1737561043219,-500.0,0.00020964,2]
[350002443,1737561043228,-500.0,0.00020964,2]
[350002444,1737561043238,-500.0,0.00020964,2]
[350002445,1737561043247,-500.0,0.00020964,2]
[350002446,1737561043256,-500.0,0.00020964,2]
[350002447,1737561043265,-500.0,0.00020964,2]
[350002448,1737561043275,-500.0,0.00020964,2]
[350002449,1737561043284,-500.0,0.00020964,2]
[350002450,1737561043294,-500.0,0.00020964,2]
[350002451,1737561043303,-500.0,0.00020964,2]
[350002452,1737561043312,-500.0,0.00020964,2]
[350002453,1737561043322,-519.71,0.00020964,2]
[350002454,1737561043331,-500.0,0.00020964,2]
[350002455,1737561043342,-500.0,0.00020964,2]
[350002456,1737561043353,-500.0,0.00020964,2]
[350002457,1737561043362,-500.0,0.00020964,2]
[350002458,1737561043371,-500.0,0.00020964,2]
[350002459,1737561043380,-730.26,0.00020964,2]
[350002460,1737561043390,-500.0,0.00020964,2]
[350002461,1737561043399,-500.0,0.00020964,2]
[350002462,1737561043408,-500.0,0.00020964,2]
[350002463,1737561043418,-500.0,0.00020964,2]
[350002464,1737561043427,-500.0,0.00020964,2]
[350002465,1737561043436,-500.0,0.00020964,2]
[350002466,1737561043445,-500.0,0.00020964,2]
[350002467,1737561043457,-500.0,0.00020964,2]
[350002468,1737561043466,-589.51,0.00020964,2]
[350002469,1737561043475,-500.0,0.00020964,2]
[350002470,1737561043485,-500.0,0.00020964,2]
[350002472,1737561043495,-500.0,0.00020964,2]
[350002474,1737561043504,-500.0,0.00020964,2]
[350002476,1737561043513,-500.0,0.00020964,2]
[350002478,1737561043522,-500.0,0.00020964,2]
[350002480,1737561043531,-500.0,0.00020964,2]
[350002481,1737561043541,-500.0,0.00020964,2]
[350002483,1737561043550,-500.0,0.00020964,2]
[350002485,1737561043560,-500.0,0.00020964,2]
[350002487,1737561043569,-500.0,0.00020964,2]
[350002489,1737561043578,-500.0,0.00020964,2]
[350002491,1737561043588,-500.0,0.00020964,2]
[350002493,1737561043597,-500.0,0.00020964,2]
[350002495,1737561043606,-500.0,0.00020964,2]
[350002497,1737561043616,-500.0,0.00020964,2]
[350002499,1737561043625,-500.0,0.00020964,2]
[350002501,1737561043634,-500.0,0.00020964,2]
[350002504,1737561043644,-500.0,0.00020964,2]
[350002507,1737561043653,-500.0,0.00020964,2]
[350002510,1737561043662,-500.0,0.00020964,2]
[350002512,1737561043671,-533.08559234,0.00020964,2]
[350002516,1737561043681,-500.0,0.00020964,2]
[350002518,1737561043691,-500.0,0.00020964,2]
[350002520,1737561043700,-624.65,0.00020964,2]
[350002522,1737561043712,-500.0,0.00020964,2]
[350002524,1737561043723,-500.0,0.00020964,2]
[350002526,1737561043732,-500.0,0.00020964,2]
[350002528,1737561043741,-601.86,0.00020964,2]
[350002529,1737561043750,-500.0,0.00020964,2]
[350002531,1737561043759,-808.95,0.00020964,2]
[350002534,1737561043769,-1002.72,0.00020964,2]
[350002536,1737561043778,-598.37,0.00020964,2]
[350002538,1737561043788,-500.0,0.00020964,2]
[350002540,1737561043797,-500.0,0.00020964,2]
[350002542,1737561043807,-500.0,0.00020964,2]
[350002543,1737561043817,-500.0,0.00020964,2]
[350002546,1737561043826,-500.0,0.00020964,2]
[350002547,1737561043836,-500.0,0.00020964,2]
[350002550,1737561043846,-500.0,0.00020964,2]
[350002551,1737561043856,-500.0,0.00020964,2]
[350002553,1737561043866,-500.0,0.00020964,2]
[350002555,1737561043875,-500.0,0.00020964,2]
[350002558,1737561043884,-500.0,0.00020964,2]
[350002559,1737561043895,-500.0,0.00020964,2]
[350002561,1737561043904,-500.0,0.00020964,2]
[350002563,1737561043913,-500.0,0.00020964,2]
[350002566,1737561043923,-500.0,0.00020964,2]
[350002568,1737561043933,-500.0,0.00020964,2]
[350002570,1737561043942,-500.0,0.00020964,2]
[350002572,1737561043952,-500.0,0.00020964,2]
[350002574,1737561043964,-1011.66,0.00020964,2]
[350002576,1737561043973,-511.58551769,0.00020964,2]
[350002578,1737561043982,-500.0,0.00020964,2]
[350002580,1737561043991,-500.0,0.00020964,2]
[350002582,1737561044001,-500.0,0.00020964,2]
[350002584,1737561044010,-500.0,0.00020964,2]
[350002586,1737561044020,-500.0,0.00020964,2]
[350002588,1737561044030,-687.52,0.00020964,2]
[350002590,1737561044039,-500.0,0.00020964,2]
[350002592,1737561044048,-907.1,0.00020964,2]
[350002594,1737561044057,-500.0,0.00020964,2]
[350002596,1737561044066,-500.0,0.00020964,2]
[350002598,1737561044075,-500.0,0.00020964,2]
[350002600,1737561044084,-500.0,0.00020964,2]
[350002602,1737561044093,-342.95,0.00020964,2]
[350002604,1737561044102,-500.0,0.00020964,2]
[350002606,1737561044111,-500.0,0.00020964,2]
[350002608,1737561044120,-500.0,0.00020964,2]
[350002610,1737561044129,-500.0,0.00020964,2]
[350002612,1737561044138,-500.0,0.00020964,2]
[350002614,1737561044148,-500.0,0.00020964,2]
[350002616,1737561044158,-500.0,0.00020964,2]
[350002618,1737561044167,-500.0,0.00020964,2]
[350002620,1737561044176,-500.0,0.00020964,2]
[350002622,1737561044185,-500.0,0.00020964,2]
[350002624,1737561044194,-500.0,0.00020964,2]
[350002626,1737561044206,-500.0,0.00020964,2]
[350002628,1737561044215,-500.0,0.00020964,2]
[350002630,1737561044224,-500.0,0.00020964,2]
[350002632,1737561044233,-500.0,0.00020964,2]
[350002634,1737561044243,-168.89,0.00020964,2]
[350002636,1737561044252,-500.0,0.00020964,2]
[350002638,1737561044262,-500.0,0.00020964,2]
[350002640,1737561044272,-560.71,0.00020964,2]
[350002642,1737561044282,-500.0,0.00020964,2]
[350002644,1737561044291,-500.0,0.00020964,2]
[350002646,1737561044301,-500.0,0.00020964,2]
[350002648,1737561044311,-500.0,0.00020964,2]
[350002650,1737561044320,-500.0,0.00020964,2]
[350002652,1737561044330,-500.0,0.00020964,2]
[350002654,1737561044339,-500.0,0.00020964,2]
[350002656,1737561044348,-611.17,0.00020964,2]
[350002658,1737561044357,-500.0,0.00020964,2]
[350002660,1737561044367,-500.0,0.00020964,2]
[350002662,1737561044376,-500.0,0.00020964,2]
[350002664,1737561044385,-500.0,0.00020964,2]
[350002666,1737561044394,-500.0,0.00020964,2]
[350002668,1737561044404,-581.22,0.00020964,2]
[350002670,1737561044412,-500.0,0.00020964,2]
[350002672,1737561044422,-915.57,0.00020964,2]
[350002674,1737561044431,-500.0,0.00020964,2]
[350002676,1737561044440,-500.0,0.00020964,2]
[350002678,1737561044449,-500.0,0.00020964,2]
[350002680,1737561044462,-503.39868062,0.00020965,2]
[350002681,1737561044472,-503.14566935,0.00020965,2]
[350002682,1737561044482,-500.0,0.00020965,2]
[350002683,1737561044491,-501.67710537,0.00020965,2]
[350002684,1737561044501,-502.23657365,0.00020965,2]
[350002685,1737561044511,-201.30616063,0.00020965,2]
[350002686,1737561044520,-501.22400596,0.00020965,2]
[350002687,1737561044530,-501.95728721,0.00020965,2]
[350002688,1737561044539,-501.56075317,0.00020965,2]
[350002690,1737561044549,-500.0,0.00020965,2]
[350002692,1737561044558,-500.0,0.00020965,2]
[350002694,1737561044567,-501.76178357,0.00020965,2]
[350002696,1737561044576,-503.04960206,0.00020965,2]
[350002698,1737561044585,-500.0,0.00020965,2]
[350002700,1737561044595,-504.67377525,0.00020965,2]
[350002702,1737561044604,-500.83039609,0.00020965,2]
[350002704,1737561044613,-500.0,0.00020965,2]
[350002706,1737561044623,-500.0,0.00020965,2]
[350002708,1737561044632,-1096.36,0.00020965,2]
[350002710,1737561044642,-500.0,0.00020965,2]
[350002712,1737561044651,-1023.68,0.00020965,2]
[350002714,1737561044661,-846.45,0.00020965,2]
[350002716,1737561044671,-500.0,0.00020965,2]
[350002718,1737561044680,-500.0,0.00020965,2]
[350002720,1737561044689,-500.0,0.00020965,2]
[350002722,1737561044699,-500.0,0.00020965,2]
[350002724,1737561044710,-758.97,0.00020965,2]
[350002726,1737561044720,-500.0,0.00020965,2]
[350002728,1737561044730,-500.0,0.00020965,2]
[350002730,1737561044739,-504.85,0.00020965,2]
[350002732,1737561044749,-593.05,0.00020965,2]
[350002734,1737561044758,-500.0,0.00020965,2]
[350002736,1737561044768,-475.0908684,0.00020971,2]
[350002738,1737561044778,-207.21193432,0.00020973,2]
[350002740,1737561044787,-500.0,0.00020973,2]
[350002742,1737561044796,-206.07062006,0.00020977,2]
[350002744,1737561044806,-252.13,0.00020998,2]
[350002746,1737561044816,-162160.39998452,0.00021,2]
[350002748,1737561044826,-153.25476685,0.00021,4]
[350002750,1737561044840,-4120.59602912,0.00021003,2]
[350002753,1737561044850,-8007.36919358,0.00021008,2]
[350002754,1737561044859,-206.07062006,0.00021015,2]
[350002756,1737561044868,-500.0,0.0002105,2]
[350002758,1737561044879,-206.07062006,0.00021054,2]
[350002760,1737561044888,-8007.36919358,0.00021057,2]
[350002762,1737561044898,-4120.59602912,0.00021062,2]
[350002764,1737561044908,-150.0,0.00021068,2]
[350002766,1737561044917,-206.07062006,0.00021092,2]
[350002768,1737561044927,-249.0,0.000211,2]
[350002770,1737561044936,-179.38075687,0.00021101,2]
[350002772,1737561044945,-8007.36919358,0.00021105,2]
[350002774,1737561044957,-4120.59602912,0.00021122,2]
[350002776,1737561044966,-150.0,0.00021129,2]
[350002778,1737561044976,-150.0,0.0002113,2]
[350002780,1737561044985,-206.07062006,0.00021131,2]
[350002782,1737561044994,-150.0,0.00021131,2]
[350002784,1737561045004,-352.78032646,0.00021137,2]
[350002786,1737561045014,-152.39518035,0.00021139,2]
[350002788,1737561045023,-500.0,0.00021139,2]
[350002790,1737561045032,-500.0,0.00021139,2]
[350002792,1737561045041,-529.0,0.00021139,2]
[350002794,1737561045050,-500.0,0.00021139,2]
[350002796,1737561045060,-500.0,0.00021139,2]
[350002798,1737561045069,-500.0,0.00021139,2]
[350002800,1737561045078,-483.23077691,0.00021139,2]
[350002802,1737561045087,-500.0,0.00021139,2]
[350002804,1737561045096,-306.71179406,0.00021139,2]
[350002806,1737561045106,-500.0,0.00021139,2]
[350002808,1737561045115,-500.0,0.00021139,2]
[350002810,1737561045125,-500.0,0.00021139,2]
[350002812,1737561045134,-500.0,0.00021139,2]
[350002814,1737561045143,-311.66139326,0.00021139,2]
[350002816,1737561045152,-500.0,0.00021139,2]
[350002818,1737561045161,-500.0,0.00021139,2]
[350002820,1737561045170,-440.32060899,0.00021139,2]
[350002822,1737561045179,-500.0,0.00021139,2]
[350002824,1737561045188,-583.68,0.00021139,2]
[350002826,1737561045197,-1913.12,0.00021139,2]
[350002828,1737561045209,-777.39,0.00021139,2]
[350002830,1737561045219,-500.0,0.00021139,2]
[350002832,1737561045228,-150.0,0.00021139,2]
[350002834,1737561045237,-540.8,0.00021139,2]
[350002836,1737561045246,-734.65,0.00021139,2]
[350002838,1737561045255,-1921.41,0.00021139,2]
[350002840,1737561045264,-500.0,0.00021139,2]
[350002842,1737561045273,-500.0,0.00021139,2]
[350002843,1737561045282,-500.0,0.00021139,2]
[350002845,1737561045291,-1387.92,0.00021139,2]
[350002848,1737561045301,-1362.93,0.00021139,2]
[350002850,1737561045310,-500.0,0.00021139,2]
[350002852,1737561045319,-1577.83,0.00021139,2]
[350002854,1737561045329,-1021.71,0.00021139,2]
[350002856,1737561045338,-500.0,0.00021139,2]
[350002857,1737561045348,-2067.0,0.00021139,2]
[350002859,1737561045357,-1157.29,0.00021139,2]
[350002861,1737561045367,-1822.39,0.00021139,2]
[350002863,1737561045376,-1240.96,0.00021139,2]
[350002865,1737561045385,-500.0,0.00021139,2]
[350002867,1737561045395,-1071.01,0.00021139,2]
[350002869,1737561045404,-500.0,0.00021139,2]
[350002871,1737561045413,-659.8,0.00021139,2]
[350002873,1737561045423,-500.0,0.00021139,2]
[350002875,1737561045431,-3026.04,0.00021139,2]
[350002877,1737561045441,-500.0,0.00021139,2]
[350002879,1737561045450,-500.0,0.00021139,2]
[350002882,1737561045463,-500.0,0.00021139,2]
[350002884,1737561045473,-724.78,0.00021139,2]
[350002885,1737561045482,-1386.84,0.00021139,2]
[350002887,1737561045492,-500.0,0.00021139,2]
[350002889,1737561045501,-500.0,0.00021139,2]
[350002892,1737561045512,-150.0,0.0002114,2]
[350002894,1737561045521,-187.7062275,0.00021141,2]
[350002895,1737561045530,-150.0,0.00021143,2]
[350002897,1737561045540,-150.0,0.00021146,2]
[350002899,1737561045549,-1000.0,0.00021149,2]
[350002902,1737561045559,-1000.0,0.00021151,2]
[350002903,1737561045569,-1000.0,0.00021151,2]
[350002905,1737561045578,-8007.36919358,0.00021154,2]
[350002908,1737561045587,-150.0,0.00021155,2]
[350002910,1737561045596,-1365.0,0.00021155,2]
[350002912,1737561045607,-1000.0,0.00021156,2]
[350002913,1737561045616,-150.0,0.00021157,2]
[350002915,1737561045626,-150.0,0.00021163,2]
[350002918,1737561045635,-150.0,0.00021169,2]
[350002919,1737561045645,-206.07062006,0.00021169,2]
[350002922,1737561045654,-1000.0,0.00021173,2]
[350002924,1737561045664,-150.0,0.00021178,2]
[350002926,1737561045673,-500.0,0.00021178,2]
[350002928,1737561045682,-150.66,0.00021178,2]
[350002930,1737561045692,-150.0,0.00021178,2]
[350002932,1737561045701,-150.0,0.00021178,2]
[350002934,1737561045714,-150.0,0.00021178,2]
[350002937,1737561045724,-150.0,0.0002118,2]
[350002939,1737561045734,-4120.59602912,0.00021181,2]
[350002941,1737561045743,-500.0,0.00021186,2]
[350002943,1737561045753,-716.07,0.00021186,2]
[350002945,1737561045762,-500.0,0.00021186,2]
[350002947,1737561045772,-1901.12,0.00021187,2]
[350002950,1737561045781,-1284.9,0.00021187,2]
[350002951,1737561045791,-2189.36,0.00021187,2]
[350002953,1737561045800,-1089.21,0.00021187,2]
[350002954,1737561045811,-1048.151989,0.00021187,2]
[350002955,1737561045821,-850.53,0.00021187,2]
[350002956,1737561045831,-584.33,0.00021187,2]
[350002958,1737561045844,-500.0,0.00021187,2]
[350002959,1737561045854,-950.99,0.00021187,2]
[350002961,1737561045864,-500.0,0.00021187,2]
[350002964,1737561045874,-1303.74,0.00021187,2]
[350002967,1737561045885,-710.76085,0.00021187,2]
[350002970,1737561045895,-1465.35,0.00021187,2]
[350002973,1737561045905,-1858.92,0.00021187,2]
[350002976,1737561045914,-1022.99,0.00021187,2]
[350002979,1737561045925,-1069.34,0.00021187,2]
[350002981,1737561045936,-3037.7,0.00021187,2]
[350002983,1737561045945,-1159.41,0.00021187,2]
[350002985,1737561045957,-730.51,0.00021187,2]
[350002987,1737561045967,-1042.13,0.00021187,2]
[350002989,1737561045977,-2346.84,0.00021187,2]
[350002991,1737561045987,-1599.28,0.00021187,2]
[350002993,1737561045997,-583.87,0.00021187,2]
[350002995,1737561046007,-2614.66,0.00021187,2]